bitfinex-derivatives/quotes_SOLF0:USTF0_20241222
["timestamp","ask_amount","ask_price","bid_price","bid_amount"]
[1734884919252,0.3237,182.83,182.68,2.7392]
[1734884919552,3.2,182.76,182.68,2.7392]
[1734884919750,3.2,182.75,182.67,1.6093]
[1734884919949,3.2,182.78,182.68,33.97255779]
[1734884920354,3.2,182.79,182.74,2.7383]
[1734884920744,3.2,182.79,182.69,5.16283981]
[1734884920944,3.2,182.79,182.72,2.7387]
[1734884921252,3.2,182.79,182.68,33.97255779]
[1734884921651,3.2,182.79,182.67,1.6093]
[1734884922049,0.90502025,182.78,182.67,1.6093]
[1734884922252,2.52822025,182.78,182.67,1.6093]
[1734884922453,0.90502025,182.77,182.67,1.6093]
[1734884924358,0.90502025,182.77,182.68,2.7393]
[1734884924658,1.6232,182.78,182.68,2.7393]
[1734884924854,0.90504098,182.77,182.68,2.7393]
[1734884925254,0.90504098,182.77,182.67,1.6093]
[1734884926051,33.97255779,182.79,182.68,5.17760689]
[1734884926262,3.2,182.78,182.68,5.17760689]
[1734884926551,3.2,182.77,182.69,5.17760689]
[1734884926956,3.2,182.77,182.7,5.17760689]
[1734884927157,3.2,182.77,182.71,5.17760689]
[1734884927353,33.97255779,182.82,182.71,5.17760689]
[1734884927558,4.10484358,182.81,182.67,1.6093]
[1734884927752,3.2,182.81,182.67,1.6093]
[1734884927951,33.97255779,182.79,182.68,5.17542382]
[1734884928161,20.73087326,182.79,182.68,5.17542382]
[1734884928362,0.90500599,182.78,182.69,5.17542382]
[1734884928562,0.90500599,182.78,182.67,1.6093]
[1734884929062,0.90500599,182.78,182.68,5.17652634]
[1734884929360,0.90500599,182.78,182.67,1.6093]
[1734884929762,20.73087326,182.79,182.68,5.17834697]
[1734884929959,0.90502199,182.78,182.68,5.17834697]
[1734884930160,0.90502199,182.78,182.67,1.6093]
[1734884930662,0.90502199,182.78,182.68,5.17744002]
[1734884930864,0.90502199,182.78,182.67,1.6093]
[1734884931565,0.90502199,182.78,182.68,5.17445318]
[1734884931970,0.90502199,182.78,182.67,1.6093]
[1734884932268,20.73087326,182.79,182.67,1.6093]
[1734884932469,0.90502242,182.78,182.67,1.6093]
[1734884932665,0.90502242,182.78,182.68,5.17324639]
[1734884932861,20.73087326,182.79,182.68,5.17324639]
[1734884933064,0.90501643,182.78,182.67,1.6093]
[1734884933263,20.73087326,182.79,182.69,5.17329749]
[1734884933466,20.73087326,182.79,182.67,1.6093]
[1734884933667,0.90500101,182.78,182.67,1.6093]
[1734884933870,0.90500101,182.78,182.68,5.17323998]
[1734884934070,20.73087326,182.76,182.68,5.17323998]
[1734884934270,4.10518907,182.75,182.63,3.2817]
[1734884934571,3.2,182.75,182.63,3.2817]
[1734884934763,3.2,182.75,182.64,5.17553549]
[1734884935068,3.2,182.76,182.66,20.73087326]
[1734884935365,3.2,182.77,182.66,20.73087326]
[1734884935673,20.73087326,182.82,182.67,5.17021269]
[1734884935872,3.2,182.81,182.67,5.17021269]
[1734884936070,20.73087326,182.85,182.69,20.73087326]
[1734884936373,4.10475042,182.84,182.7,6.84651269]
[1734884936570,3.2,182.84,182.71,5.17021269]
[1734884936772,3.2,182.84,182.71,8.59491269]
[1734884936968,3.2,182.84,182.75,2.7382]
[1734884937169,3.18,182.83,182.75,2.7382]
[1734884937365,3.18,182.83,182.72,20.73087326]
[1734884937570,3.18,182.82,182.72,20.73087326]
[1734884937875,92.31471967,182.89,182.72,20.73087326]
[1734884937876,3.18,182.85,182.75,20.73087326]
[1734884938072,3.18,182.85,182.76,5.1599071]
[1734884938367,3.18,182.87,182.8,2.7375]
[1734884938569,3.18,182.87,182.81,1.6544]
[1734884939572,0.90459497,182.86,182.76,1.6544]
[1734884940874,0.90459497,182.86,182.76,4.3925]
[1734884941074,3.18,182.87,182.76,4.3925]
[1734884943166,3.18,182.86,182.77,2.7379]
[1734884943772,3.18,182.86,182.76,1.6544]
[1734884944278,3.18,182.86,182.77,5.15382074]
[1734884944480,3.18,182.86,182.79,2.7375]
[1734884944679,3.18,182.86,182.76,1.6544]
[1734884944982,3.18,182.86,182.81,2.7373]
[1734884945280,3.18,182.87,182.81,2.7373]
[1734884947281,3.18,182.87,182.79,3.2465]
[1734884947577,20.73087326,182.85,182.76,1.6544]
[1734884948082,0.90467926,182.84,182.73,108.01744057]
[1734884948279,0.90467926,182.84,182.67,20.73087326]
[1734884948280,2.60367926,182.84,182.69,4.8653]
[1734884948483,1.699,182.84,182.71,2.7387]
[1734884948680,20.73087326,182.82,182.69,4.8653]
[1734884948882,4.08481172,182.81,182.7,5.15632117]
[1734884949177,3.18,182.81,182.7,5.15632117]
[1734884949484,20.73087326,182.79,182.69,4.8653]
[1734884950388,0.9049783,182.78,182.69,4.8653]
[1734884950679,20.73087326,182.76,182.69,1.6921]
[1734884950881,3.18,182.75,182.69,1.6921]
[1734884955286,3.18,182.75,182.64,4.3396]
[1734884955484,3.18,182.75,182.65,5.16194076]
[1734884955679,20.73087326,182.71,182.65,5.16194076]
[1734884955883,20.73087326,182.68,182.62,18.74217655]
[1734884956279,20.73087326,182.65,182.62,18.74217655]
[1734884956588,3.18,182.64,182.57,18.75329781]
[1734884957888,3.18,182.64,182.47,169.54229938]
[1734884958089,3.18,182.64,182.52,5.16789869]
[1734884958285,36.92210439,182.64,182.52,5.16789869]
[1734884958488,36.92210439,182.64,182.53,7.90939869]
[1734884958788,36.92210439,182.64,182.54,5.16789869]
[1734884958984,33.74210439,182.61,182.54,5.16789869]
[1734884959189,33.74210439,182.58,182.51,1.6523]
[1734884959392,3.18,182.57,182.51,1.6523]
[1734884959895,33.74210439,182.61,182.47,148.81142612]
[1734884960089,3.18,182.6,182.48,5.16538142]
[1734884960385,3.18,182.6,182.49,5.16538142]
[1734884960584,3.18,182.6,182.5,5.16538142]
[1734884960990,3.18,182.6,182.51,5.16538142]
[1734884961392,3.18,182.6,182.54,2.7414]
[1734884964097,3.18,182.6,182.53,2.7415]
[1734884964298,3.18,182.59,182.47,33.74210439]
[1734884964498,3.18,182.59,182.48,5.15320735]
[1734884964798,3.18,182.59,182.49,5.15320735]
[1734884965098,3.18,182.59,182.54,2.7413]
[1734884965888,2.2934,182.69,182.5,33.74210439]
[1734884966101,4.08558067,182.68,182.53,33.74210439]
[1734884966293,3.18,182.68,182.53,33.74210439]
[1734884966591,3.18,182.68,182.57,2.7409]
[1734884967300,33.74210439,182.67,182.56,1.7396]
[1734884968997,33.74210439,182.64,182.56,1.7396]
[1734884969201,3.18,182.63,182.56,1.7396]
[1734884969899,3.18,182.63,181.57,80.20339422]
[1734884969900,33.74210439,182.61,182.48,2.7422]
[1734884970103,33.74210439,182.58,182.48,6.1836]
[1734884970405,3.18,182.57,182.48,3.4414]
[1734884970599,3.18,182.57,182.48,6.1837]
[1734884970900,3.18,182.57,182.48,3.4414]
[1734884973305,33.74210439,182.58,182.49,2.742]
[1734884973603,3.18,182.57,182.48,3.4414]
[1734884973801,3.18,182.58,182.51,2.7417]
[1734884974402,33.74210439,182.61,182.49,5.13950448]
[1734884974596,3.18,182.6,182.49,5.13950448]
[1734884974792,3.18,182.59,182.5,5.13950448]
[1734884975001,3.18,182.59,182.53,2.7414]
[1734884975800,3.18,182.59,182.48,3.4414]
[1734884976000,3.18,182.59,182.49,5.13659426]
[1734884976403,3.18,182.6,182.5,5.13659426]
[1734884976601,3.18,182.6,182.51,5.13659426]
[1734884976904,3.18,182.6,182.54,2.7413]
[1734884977703,3.18,182.6,182.5,5.13659426]
[1734884977899,3.18,182.6,182.48,3.4414]
[1734884978395,3.18,182.6,182.49,38.87742251]
[1734884978597,3.18,182.6,182.5,5.13531812]
[1734884978901,3.18,182.6,182.49,33.74210439]
[1734884978902,3.18,182.61,182.56,2.741]
[1734884979603,3.18,182.61,182.49,33.74210439]
[1734884979802,3.18,182.61,182.5,5.13294556]
[1734884980199,3.18,182.61,182.48,3.4414]
[1734884980399,3.18,182.61,182.48,24.20198174]
[1734884981206,2.741,182.57,182.52,2.7417]
[1734884982406,2.741,182.57,182.48,24.20198174]
[1734884982407,2.7408,182.58,182.54,2.7414]
[1734884982903,2.7408,182.58,182.48,24.20198174]
[1734884983108,2.7408,182.58,182.53,2.7416]
[1734884984309,2.7408,182.58,182.49,18.14869228]
[1734884984509,3.18,182.64,182.51,20.76058174]
[1734884984711,3.18,182.64,182.52,3.18]
[1734884984904,3.18,182.64,182.56,2.741]
[1734884985103,2.7405,182.61,182.52,3.18]
[1734884985507,2.7405,182.61,182.56,2.741]
[1734884985707,2.7405,182.6,182.56,2.741]
[1734884988913,2.7405,182.6,182.54,1.612]
[1734884989114,2.7405,182.6,182.57,2.7409]
[1734884989909,23.94058174,182.64,182.54,1.612]
[1734884990914,23.94058174,182.64,182.51,89.48150497]
[1734884991218,20.76058174,182.61,182.51,89.48150497]
[1734884991406,3.4283,182.6,182.51,89.48150497]
[1734884991612,3.18,182.59,182.51,89.48150497]
[1734884991919,2.741,182.57,182.51,89.48150497]
[1734884992110,3.18,182.59,182.51,89.48150497]
[1734884992508,2.7417,182.52,182.51,89.48150497]
[1734884992714,3.18,182.52,182.47,89.48150497]
[1734884993315,3.18,182.56,182.47,89.48150497]
[1734884993809,2.7418,182.52,182.45,89.48150497]
[1734884994009,3.18,182.56,182.45,89.48150497]
[1734884994707,3.18,182.56,182.46,133.55467574]
[1734884994906,2.742,182.5,182.46,136.29727574]
[1734884995112,3.18,182.56,182.46,136.29727574]
[1734884995614,2.7418,182.52,182.46,136.29727574]
[1734884995815,3.18,182.56,182.46,136.29727574]
[1734884996016,3.18,182.56,182.47,18.88850176]
[1734884996516,3.18,182.56,182.46,2.7426]
[1734884996918,3.18,182.56,182.48,2.7422]
[1734884997313,2.7416,182.53,182.48,2.7422]
[1734884998307,2.7414,182.55,182.46,114.64246972]
[1734884998612,3.4283,182.6,182.46,114.64246972]
[1734884998613,3.18,182.57,182.46,114.64246972]
[1734884998815,2.7414,182.54,182.49,2.742]
[1734884999319,2.7414,182.54,182.48,89.48150497]
[1734885000423,2.7414,182.54,182.5,2.7419]
[1734885001110,2.7413,182.55,182.49,18.86361677]
[1734885001316,2.7413,182.55,182.5,1.6757]
[1734885001515,20.76058174,182.64,182.53,2.7414]
[1734885001715,3.18,182.63,182.53,2.7414]
[1734885002118,20.76058174,182.61,182.5,4.4177]
[1734885002424,20.76058174,182.58,182.5,89.48150497]
[1734885002626,3.18,182.57,182.5,89.48150497]
[1734885002923,2.742,182.51,182.5,89.48150497]
[1734885003223,2.7417,182.52,182.5,89.48150497]
[1734885003424,2.7417,182.52,182.46,89.48150497]
[1734885004123,2.7417,182.52,182.48,2.7422]
[1734885004324,2.7417,182.52,182.47,18.89526689]
[1734885004823,2.7417,182.52,182.48,2.7423]
[1734885005119,3.18,182.55,182.48,18.89526689]
[1734885005822,2.7423,182.49,182.48,18.89526689]
[1734885006224,2.7423,182.49,182.45,182.18973027]
[1734885006225,3.18,182.5,182.45,1.6757]
[1734885006925,3.18,182.5,182.44,3.3115]
[1734885008019,2.7424,182.48,182.44,6.0544]
[1734885008326,3.18,182.5,182.42,114.65027323]
[1734885008524,3.18,182.5,182.43,2.743]
[1734885008525,2.7426,182.47,182.43,2.743]
[1734885008721,3.18,182.5,182.42,114.65027323]
[1734885008922,3.18,182.5,182.43,18.87771724]
[1734885009628,20.76058174,182.48,182.43,18.87771724]
[1734885009925,2.7429,182.44,182.43,18.87771724]
[1734885010125,3.18,182.44,182.38,114.65306609]
[1734885010534,20.76058174,182.52,182.38,114.65306609]
[1734885010824,3.18,182.48,182.38,114.65306609]
[1734885011223,3.18,182.48,182.37,23.94058174]
[1734885011726,5.9223,182.48,182.43,2.7429]
[1734885012622,2.7425,182.47,182.43,2.7429]
[1734885013919,2.7426,182.46,182.42,6.0322]
[1734885014218,3.18,182.48,182.42,3.289]
[1734885014927,2.7429,182.45,182.42,3.289]
[1734885015424,2.743,182.44,182.42,3.289]
[1734885015628,3.18,182.48,182.42,3.289]
[1734885015928,2.743,182.44,182.42,3.289]
[1734885016229,3.18,182.48,182.42,3.289]
[1734885016428,3.18,182.48,182.43,1.5786]
[1734885016628,24.14548174,182.58,182.43,1.5786]
[1734885016823,24.14548174,182.58,182.43,22.33918174]
[1734885016824,3.18,182.57,182.43,22.33918174]
[1734885017428,2.7418,182.52,182.47,2.7424]
[1734885017619,3.18,182.57,182.47,2.7424]
[1734885017823,2.7416,182.53,182.49,2.7421]
[1734885018018,3.18,182.57,182.43,22.33918174]
[1734885018523,3.18,182.57,182.44,108.33507891]
[1734885018928,20.76058174,182.55,182.44,108.33507891]
[1734885019525,2.7426,182.47,182.44,108.33507891]
[1734885019832,3.18,182.49,182.44,108.33507891]
[1734885020027,3.18,182.52,182.43,1.5786]
[1734885020423,3.18,182.52,182.43,22.33918174]
[1734885020625,3.18,182.52,182.43,25.51918174]
[1734885020824,5.9217,182.52,182.49,2.7422]
[1734885021127,5.9217,182.52,182.43,115.00068671]
[1734885021829,5.9217,182.52,182.46,89.48150497]
[1734885022227,3.18,182.52,182.46,89.48150497]
[1734885022434,77.78058174,182.61,182.46,110.24208671]
[1734885022630,23.99278174,182.64,182.49,20.76058174]
[1734885022931,23.99278174,182.64,182.5,3.2972]
[1734885022932,2.7408,182.58,182.5,3.2972]
[1734885023132,2.7408,182.58,182.51,1.5863]
[1734885023334,2.7408,182.58,182.53,2.7414]
[1734885023526,3.18,182.63,182.51,1.5863]
[1734885023728,2.7413,182.55,182.51,1.5863]
[1734885023933,3.18,182.63,182.52,18.86912665]
[1734885024127,2.7411,182.56,182.52,21.61082665]
[1734885024528,3.18,182.63,182.52,18.86912665]
[1734885024731,2.7408,182.58,182.54,2.7413]
[1734885027947,20.76058174,182.67,182.52,20.76058174]
[1734885028247,3.18,182.66,182.55,20.76058174]
[1734885028746,2.7401,182.63,182.59,2.7405]
[1734885028938,1.7062,182.69,182.55,20.76058174]
[1734885029139,3.18,182.68,182.61,2.7402]
[1734885029341,3.18,182.68,182.55,20.76058174]
[1734885029947,3.18,182.68,182.56,18.85691291]
[1734885030247,3.18,182.68,182.61,2.7404]
[1734885030447,1.9418,182.72,182.56,18.85691291]
[1734885030746,2.7394,182.68,182.58,20.76058174]
[1734885030950,2.7394,182.68,182.59,4.877]
[1734885031147,2.7394,182.68,182.63,2.7399]
[1734885031549,2.7394,182.68,182.59,4.877]
[1734885031746,3.18,182.72,182.61,20.76058174]
[1734885032649,3.18,182.72,182.59,8.057]
[1734885032850,2.7393,182.69,182.63,2.74]
[1734885033052,3.18,182.72,182.59,8.057]
[1734885033347,1.6444,182.75,182.61,20.76058174]
[1734885033555,3.18,182.74,182.68,2.7392]
[1734885033753,3.18,182.74,182.61,20.76058174]
[1734885034457,2.739,182.71,182.67,2.7394]
[1734885034753,3.18,182.74,182.61,20.76058174]
[1734885035055,2.7387,182.72,182.61,20.76058174]
[1734885035249,2.7387,182.72,182.62,3.16]
[1734885035550,2.7387,182.72,182.67,2.7393]
[1734885036148,20.76058174,182.73,182.59,4.877]
[1734885036342,0.90527835,182.72,182.6,5.26032148]
[1734885036755,0.90527835,182.72,182.59,4.877]
[1734885037052,22.81998174,182.73,182.6,2.7405]
[1734885037254,4.06546986,182.72,182.6,2.7405]
[1734885037455,0.90546986,182.71,182.6,2.7405]
[1734885037753,2.7399,182.65,182.6,2.7405]
[1734885038145,3.16,182.7,182.59,4.877]
[1734885038548,3.16,182.7,182.61,20.76058174]
[1734885038851,3.16,182.7,182.6,8.4189192]
[1734885038852,3.16,182.74,182.68,2.7392]
[1734885039050,20.76058174,182.79,182.64,20.76058174]
[1734885039249,2.7383,182.75,182.7,2.7389]
[1734885039453,2.7383,182.75,182.65,8.41301108]
[1734885039651,3.16,182.78,182.67,20.76058174]
[1734885039854,3.16,182.78,182.68,10.15601108]
[1734885040045,2.7378,182.78,182.73,2.7384]
[1734885040245,3.16,182.79,182.68,4.903]
[1734885040647,3.16,182.79,182.75,2.7381]
[1734885041246,2.7378,182.78,182.7,20.76058174]
[1734885041453,3.16,182.79,182.7,20.76058174]
[1734885042055,3.16,182.79,182.68,4.903]
[1734885042746,2.7386,182.73,182.69,2.7391]
[1734885043453,3.16,182.79,182.69,2.7391]
[1734885043454,2.7384,182.74,182.69,2.7391]
[1734885043648,3.16,182.79,182.69,2.7391]
[1734885043855,3.16,182.79,182.68,4.903]
[1734885044054,2.7386,182.73,182.69,2.7391]
[1734885045051,2.7388,182.72,182.68,7.6423]
[1734885045253,3.16,182.74,182.68,4.903]
[1734885046656,2.7389,182.71,182.68,4.903]
[1734885046854,3.16,182.74,182.61,33.68071587]
[1734885047051,36.84071587,182.74,182.58,33.68071587]
[1734885047557,2.7396,182.67,182.63,2.74]
[1734885047755,5.8996,182.67,182.63,2.74]
[1734885047951,3.16,182.67,182.6,5.23823736]
[1734885048261,3.16,182.67,182.58,33.68071587]
[1734885048759,2.7396,182.66,182.61,2.7402]
[1734885048953,3.16,182.67,182.59,5.2389267]
[1734885049153,3.16,182.67,182.58,33.68071587]
[1734885049154,2.74,182.64,182.6,2.7405]
[1734885049657,3.16,182.67,182.55,38.74671587]
[1734885049856,3.16,182.67,182.55,5.066]
[1734885050259,2.7401,182.63,182.58,2.7408]
[1734885050458,3.16,182.62,182.55,38.74671587]
[1734885050660,3.16,182.65,182.56,5.24321912]
[1734885050858,3.16,182.65,182.61,2.7403]
[1734885051257,3.16,182.65,182.55,38.74671587]
[1734885051657,3.16,182.65,182.56,5.24418759]
[1734885052261,3.16,182.65,182.58,33.68071587]
[1734885052459,3.16,182.65,182.64,2.7399]
[1734885052660,3.16,182.69,182.59,5.24418759]
[1734885052965,3.16,182.7,182.61,33.68071587]
[1734885053160,3.16,182.74,182.64,33.68071587]
[1734885053457,2.7383,182.75,182.7,2.7389]
[1734885053662,3.16,182.76,182.7,2.7389]
[1734885053964,3.16,182.75,182.7,2.7389]
[1734885054864,2.7384,182.74,182.7,2.7389]
[1734885055261,33.68071587,182.81,182.71,2.7388]
[1734885055555,4.06498358,182.8,182.67,33.68071587]
[1734885055863,3.16,182.79,182.68,5.24889647]
[1734885056063,3.6044,182.84,182.7,33.68071587]
[1734885056264,3.16,182.8,182.67,33.68071587]
[1734885056959,3.16,182.8,182.68,5.24907475]
[1734885057159,2.7381,182.76,182.72,2.7386]
[1734885057763,2.7379,182.78,182.67,33.68071587]
[1734885058063,16.46,182.9,182.7,33.68071587]
[1734885058364,2.7373,182.82,182.71,5.25186821]
[1734885058570,3.16,182.84,182.73,33.68071587]
[1734885058768,3.16,182.84,182.74,4.8601]
[1734885058969,2.7372,182.83,182.74,4.8601]
[1734885059171,3.16,182.84,182.74,4.8601]
[1734885059562,3.16,182.85,182.75,5.24954348]
[1734885059764,3.16,182.85,182.76,5.24954348]
[1734885059967,5.8966,182.86,182.81,2.7372]
[1734885060471,2.7366,182.86,182.81,2.7372]
[1734885060668,2.7364,182.88,182.83,2.737]
[1734885060863,3.16,182.89,182.76,33.68071587]
[1734885061069,3.16,182.88,182.76,33.68071587]
[1734885061269,3.16,182.88,182.78,2.7376]
[1734885061473,3.16,182.88,182.77,5.25581932]
[1734885061767,2.7372,182.82,182.79,5.25581932]
[1734885061967,2.7372,182.82,182.78,5.25581932]
[1734885062163,2.7372,182.82,182.77,2.7379]
[1734885062965,3.16,182.83,182.78,2.7376]
[1734885063163,3.16,182.83,182.75,3.16]
[1734885063368,3.16,182.83,182.76,38.9267711]
[1734885063573,3.16,182.83,182.81,2.7373]
[1734885063764,2.7366,182.86,182.81,2.7373]
[1734885064367,2.7364,182.88,182.83,2.737]
[1734885064571,3.16,182.89,182.79,33.68071587]
[1734885064868,3.16,182.93,182.82,33.68071587]
[1734885065071,5.8955,182.93,182.88,2.7361]
[1734885065670,2.7355,182.93,182.88,2.7361]
[1734885066175,2.7357,182.92,182.87,2.7364]
[1734885066375,0.24396,182.94,182.83,10.18466745]
[1734885066574,3.16,182.91,182.83,10.18466745]
[1734885066772,3.40396,182.94,182.86,33.68071587]
[1734885067171,3.40396,182.94,182.9,2.7359]
[1734885067566,3.40396,182.94,182.86,33.68071587]
[1734885068274,6.13936,182.94,182.87,5.2432125]
[1734885068469,3.40396,182.94,182.9,2.7359]
[1734885068670,2.7359,182.91,182.88,5.2432125]
[1734885068867,2.7359,182.91,182.83,38.61891587]
[1734885068868,3.40396,182.94,182.83,38.61891587]
[1734885069173,3.40396,182.94,182.84,5.2401295]
[1734885069570,3.40396,182.94,182.83,38.61891587]
[1734885069571,3.40396,182.94,182.85,5.2401295]
[1734885069974,33.68071587,182.93,182.78,92.64150497]
[1734885070175,2.7371,182.83,182.79,7.98001306]
[1734885070365,3.16,182.86,182.79,5.24241306]
[1734885070571,2.7362,182.89,182.83,2.737]
[1734885070775,3.16,182.9,182.77,38.62961587]
[1734885071166,3.16,182.9,182.78,5.24087443]
[1734885071376,3.16,182.9,182.79,5.24087443]
[1734885071576,3.16,182.9,182.8,5.24087443]
[1734885071878,3.16,182.9,182.8,38.9215903]
[1734885072177,3.16,182.9,182.81,5.24087443]
[1734885072377,3.16,182.9,182.86,2.7365]
[1734885072577,3.16,182.9,182.87,5.24087443]
[1734885072875,2.7363,182.88,182.87,5.24087443]
[1734885073172,3.16,182.9,182.8,33.68071587]
[1734885073572,2.7365,182.87,182.82,2.7371]
[1734885073772,3.16,182.9,182.81,5.24416402]
[1734885074079,2.7367,182.86,182.8,2.7373]
[1734885074272,2.7367,182.86,182.81,5.24720477]
[1734885074581,2.7367,182.86,182.82,5.24720477]
[1734885074974,2.7367,182.86,182.83,5.24720477]
[1734885075277,3.16,182.9,182.8,33.68071587]
[1734885075468,3.16,182.89,182.8,33.68071587]
[1734885075676,3.16,182.89,182.81,5.24804441]
[1734885075968,3.16,182.89,182.8,33.68071587]
[1734885075969,3.16,182.89,182.82,5.24804441]
[1734885076170,3.16,182.89,182.83,5.24804441]
[1734885076677,3.16,182.89,182.84,5.24804441]
[1734885076878,0.24396,182.94,182.85,5.24804441]
[1734885077076,3.16,182.93,182.85,5.24804441]
[1734885077281,2.7357,182.91,182.86,7.98424441]
[1734885077475,3.16,182.92,182.86,5.24804441]
[1734885077878,2.736,182.89,182.84,2.7366]
[1734885078079,2.736,182.89,182.85,5.24518677]
[1734885078279,2.7355,182.92,182.86,2.7362]
[1734885078481,3.16,182.91,182.83,33.68071587]
[1734885078679,3.16,182.91,182.84,5.2433467]
[1734885078880,5.8957,182.91,182.86,2.7362]
[1734885079278,3.16,182.91,182.86,2.7362]
[1734885079578,2.7358,182.9,182.86,2.7362]
[1734885080783,3.16,182.91,182.83,33.68071587]
[1734885081081,3.16,182.91,182.84,5.23989996]
[1734885081483,3.16,182.91,182.88,2.7359]
[1734885081679,3.16,182.91,182.85,10.21329996]
[1734885081879,3.16,182.91,182.86,5.23989996]
[1734885082280,3.16,182.91,182.78,20.69556627]
[1734885082679,3.16,182.91,182.79,5.2420215]
[1734885082881,3.16,182.91,182.8,5.2420215]
[1734885083183,3.16,182.91,182.81,5.2420215]
[1734885083574,2.7364,182.86,182.82,7.9788215]
[1734885083983,2.7364,182.86,182.82,2.7368]
[1734885084383,3.16,182.91,182.78,20.69556627]
[1734885084889,3.16,182.91,182.79,5.24440171]
[1734885085081,3.16,182.91,182.84,2.7366]
[1734885085287,3.16,182.91,182.78,20.69556627]
[1734885085788,3.16,182.9,182.78,20.69556627]
[1734885085981,3.16,182.9,182.79,5.24180021]
[1734885086287,2.7363,182.87,182.83,2.7366]
[1734885086482,3.16,182.9,182.8,5.24180021]
[1734885086888,3.16,182.9,182.81,5.24180021]
[1734885087085,3.16,182.9,182.76,94.61100497]
[1734885087289,2.7366,182.85,182.8,2.7371]
[1734885087590,5.8966,182.85,182.8,2.7371]
[1734885087982,2.7367,182.84,182.8,2.7371]
[1734885088684,3.16,182.85,182.76,5.1295]
[1734885088879,3.16,182.85,182.77,5.23827309]
[1734885089293,3.16,182.85,182.76,5.1295]
[1734885089488,2.7373,182.8,182.76,7.8673]
[1734885089686,2.7373,182.8,182.76,5.1295]
[1734885089886,3.16,182.85,182.77,5.24110568]
[1734885090186,2.7373,182.8,182.77,2.7376]
[1734885091385,1.5863,182.88,182.76,5.1295]
[1734885091590,3.16,182.87,182.77,5.24739079]
[1734885091886,2.737,182.82,182.78,2.7374]
[1734885092088,2.737,182.82,182.78,7.98479079]
[1734885092283,3.16,182.87,182.76,5.1295]
[1734885092490,1.7017,182.91,182.78,20.69556627]
[1734885092683,3.16,182.9,182.79,5.2458537]
[1734885092887,3.16,182.9,182.8,5.2458537]
[1734885093092,2.7362,182.87,182.83,2.7367]
[1734885093393,2.7362,182.87,182.78,20.69556627]
[1734885093593,2.7362,182.87,182.83,2.7367]
[1734885093996,2.7362,182.87,182.79,5.24515319]
[1734885094190,2.7362,182.87,182.78,110.17707124]
[1734885094789,2.7362,182.87,182.83,2.7366]
[1734885095091,2.7362,182.87,182.8,89.48150497]
[1734885095286,2.7362,182.87,182.81,5.25050966]
[1734885095483,2.7362,182.87,182.82,5.25050966]
[1734885095683,3.16,182.9,182.82,5.25050966]
[1734885095894,3.16,182.9,182.83,5.25050966]
[1734885096392,2.7363,182.86,182.82,2.7369]
[1734885096594,3.16,182.9,182.79,89.48150497]
[1734885096896,2.7362,182.88,182.84,2.7366]
[1734885097085,3.16,182.9,182.8,5.25535822]
[1734885097292,3.16,182.9,182.81,5.25535822]
[1734885097795,2.7362,182.87,182.82,5.25535822]
[1734885097993,3.16,182.9,182.82,5.25535822]
[1734885098296,3.16,182.9,182.83,5.25535822]
[1734885098696,3.16,182.9,182.84,5.25535822]
[1734885098887,7.53539971,183.05,182.86,20.69556627]
[1734885099087,5.59649914,183.06,183.04,2.7336]
[1734885099291,226.06199141,183.15,183.03,20.69556627]
[1734885099493,96.0691227,183.09,183.07,20.69556627]
[1734885099688,59.66565729,183.09,183.08,2.733]
[1734885100190,3.903,183.23,183.08,33.51516716]
[1734885100396,3.903,183.23,183.08,42.96199344]
[1734885100594,3.903,183.23,183.09,4.19344224]